bitfinex-derivatives/quotes_ETHF0:USTF0_20240915
["timestamp","ask_amount","ask_price","bid_price","bid_amount"]
[1726368335389,1.13605,2425.2,2425.0,1.14759399]
[1726368335587,1.13605,2425.2,2425.1,0.64202786]
[1726368335883,1.13605,2425.2,2424.9,1.80978]
[1726368336082,2.15753786,2425.0,2424.9,1.80978]
[1726368336287,2.15753786,2425.0,2424.9,2.45181155]
[1726368336480,2.53273786,2425.0,2424.9,2.95738033]
[1726368338988,0.3752,2425.0,2424.9,2.95738033]
[1726368339185,0.3752,2425.0,2424.9,2.31534878]
[1726368339384,0.3752,2425.0,2424.9,1.80978]
[1726368339688,0.70498,2425.0,2424.9,1.14760412]
[1726368339889,8.03678,2425.0,2424.9,1.14760412]
[1726368340082,8.03678,2425.0,2424.9,0.50557007]
[1726368340387,11.27651121,2425.0,2424.9,0.50557007]
[1726368341978,8.06871121,2425.0,2424.9,0.50557007]
[1726368342277,11.27651121,2425.0,2424.9,0.50557007]
[1726368342879,11.27313075,2425.0,2424.9,0.50557007]
[1726368343887,0.32979,2424.9,2424.8,0.096]
[1726368344086,0.72399,2424.9,2424.8,0.096]
[1726368344388,1.12829,2424.9,2424.8,0.096]
[1726368345190,4.33609,2424.9,2424.8,0.096]
[1726368351092,1.12829,2424.9,2424.8,0.096]
[1726368351291,4.33609,2424.9,2424.8,0.096]
[1726368352094,1.12829,2424.9,2424.8,0.096]
[1726368352297,4.33609,2424.9,2424.8,0.096]
[1726368352500,1.12829,2424.9,2424.8,0.096]
[1726368352698,4.33609,2424.9,2424.8,0.096]
[1726368354796,7.03157034,2424.9,2424.8,0.096]
[1726368355293,4.33609,2424.9,2424.8,0.096]
[1726368355497,1.12829,2424.9,2424.8,0.096]
[1726368360504,0.7985,2424.9,2424.8,0.096]
[1726368361202,0.7985,2424.9,2424.8,0.73809595]
[1726368361803,0.7985,2424.9,2424.8,1.38019176]
[1726368362003,0.7985,2424.9,2424.8,0.73809595]
[1726368363706,0.7985,2424.9,2424.8,1.38019202]
[1726368364108,0.7985,2424.9,2424.8,0.73809607]
[1726368366005,0.7985,2424.9,2424.8,0.096]
[1726368366006,3.49392264,2424.9,2424.8,0.096]
[1726368370802,0.7985,2424.9,2424.8,0.096]
[1726368371516,3.49465309,2424.9,2424.8,0.096]
[1726368372407,0.7985,2424.9,2424.8,0.096]
[1726368372610,3.49483051,2424.9,2424.8,0.096]
[1726368373416,0.7985,2424.9,2424.8,0.096]
[1726368373914,3.49507863,2424.9,2424.8,0.096]
[1726368374305,3.49530173,2424.9,2424.8,0.096]
[1726368375523,0.7985,2424.9,2424.8,0.096]
[1726368377412,0.7985,2424.9,2424.8,0.73808712]
[1726368381014,0.7985,2424.9,2424.8,0.096]
[1726368381515,0.7985,2424.9,2424.8,0.73808902]
[1726368381914,0.7985,2424.9,2424.8,0.60160564]
[1726368382219,0.7985,2424.9,2424.8,1.24369468]
[1726368385419,4.03485075,2424.9,2424.8,1.24369468]
[1726368385822,0.7985,2424.9,2424.8,1.24369468]
[1726368386514,4.03485075,2424.9,2424.8,1.24369468]
[1726368389325,0.7985,2424.9,2424.8,1.24369468]
[1726368391326,4.03485075,2424.9,2424.8,0.73808904]
[1726368391823,4.03485075,2424.9,2424.8,1.24372006]
[1726368392126,4.03485075,2424.9,2424.8,1.74933556]
[1726368394418,4.03485075,2424.9,2424.8,1.24372011]
[1726368394613,4.03485075,2424.9,2424.8,1.24372022]
[1726368394821,4.03485075,2424.9,2424.8,0.6016155]
[1726368395118,4.03485075,2424.9,2424.8,1.24372076]
[1726368396525,4.36464075,2424.9,2424.8,1.24372076]
[1726368398622,4.36464075,2424.9,2424.8,1.24372067]
[1726368400329,7.01092597,2424.9,2424.8,1.24372067]
[1726368400529,4.36464075,2424.9,2424.8,1.24372067]
[1726368400826,7.0109221,2424.9,2424.8,1.24372067]
[1726368401023,4.36464075,2424.9,2424.8,1.24372067]
[1726368402234,7.01089876,2424.9,2424.8,1.24372067]
[1726368402627,4.36464075,2424.9,2424.8,1.24372067]
[1726368402826,7.01089441,2424.9,2424.8,0.096]
[1726368403025,7.01089441,2424.9,2424.8,0.73810543]
[1726368403227,7.01089441,2424.9,2424.8,1.24372139]
[1726368403428,6.68110441,2424.9,2424.8,1.24372139]
[1726368403730,4.03485075,2424.9,2424.8,1.24372139]
[1726368403932,6.68112795,2424.9,2424.8,1.24372139]
[1726368404429,6.68115009,2424.9,2424.8,1.24372139]
[1726368404633,4.03485075,2424.9,2424.8,1.24372139]
[1726368405334,6.68114359,2424.9,2424.8,1.24372139]
[1726368405529,4.03485075,2424.9,2424.8,1.24372139]
[1726368406023,6.68113392,2424.9,2424.8,0.73810527]
[1726368406229,6.68113392,2424.9,2424.8,1.24372108]
[1726368406630,4.03485075,2424.9,2424.8,1.24372108]
[1726368406929,6.68113721,2424.9,2424.8,1.24372108]
[1726368407131,4.03485075,2424.9,2424.8,1.24372108]
[1726368407426,4.03485075,2424.9,2424.8,1.24372077]
[1726368408127,4.36464075,2424.9,2424.8,1.24372077]
[1726368408328,6.6783244,2424.9,2424.8,1.24372077]
[1726368409838,6.6783244,2424.9,2424.8,1.24372116]
[1726368412726,9.8861244,2424.9,2424.8,1.24372116]
[1726368413636,9.8861244,2424.9,2424.8,0.73810131]
[1726368413830,9.8861244,2424.9,2424.8,0.096]
[1726368414037,9.8861244,2424.9,2424.8,1.24371676]
[1726368414426,9.8861244,2424.9,2424.8,1.74933165]
[1726368414630,9.8861244,2424.9,2424.8,1.24371903]
[1726368420336,10.2159144,2424.9,2424.8,1.24371903]
[1726368420538,10.2159144,2424.9,2424.8,0.60161489]
[1726368420734,10.2159144,2424.9,2424.8,1.24373721]
[1726368423036,10.2159144,2424.9,2424.8,1.24373322]
[1726368423241,10.2159144,2424.9,2424.8,0.60161489]
[1726368423439,9.8861244,2424.9,2424.8,0.096]
[1726368423746,9.8861244,2424.9,2424.8,1.24374127]
[1726368424144,9.8861244,2424.9,2424.8,0.7381178]
[1726368424445,10.2159144,2424.9,2424.8,1.24374066]
[1726368430055,10.2159144,2424.9,2424.8,0.7381168]
[1726368430252,10.2159144,2424.9,2424.8,1.24374067]
[1726368433359,10.2159144,2424.9,2424.8,0.60162387]
[1726368433657,10.2159144,2424.9,2424.8,1.24374043]
[1726368433848,10.2159144,2424.9,2424.8,0.096]
[1726368434048,10.2159144,2424.9,2424.8,0.73811752]
[1726368434248,10.2159144,2424.9,2424.8,1.24374126]
[1726368436848,10.2159144,2424.9,2424.8,0.73811456]
[1726368437153,10.2159144,2424.9,2424.8,1.24373615]
[1726368443459,10.2159144,2424.9,2424.8,0.60162159]
[1726368443662,10.2159144,2424.9,2424.8,0.73811943]
[1726368443857,10.2159144,2424.9,2424.8,1.24374418]
[1726368446766,10.2159144,2424.9,2424.8,0.73811943]
[1726368447068,9.8861244,2424.9,2424.8,1.2437432]
[1726368447768,10.2159144,2424.9,2424.8,1.2437432]
[1726368449062,9.8861244,2424.9,2424.8,1.2437432]
[1726368453570,9.8861244,2424.9,2424.8,0.60162377]
[1726368453870,9.8861244,2424.9,2424.8,1.24371997]
[1726368454961,9.8861244,2424.9,2424.8,1.24372074]
[1726368456764,6.6783244,2424.9,2424.8,2.72372074]
[1726368456964,6.6783244,2424.9,2424.8,2.08161535]
[1726368457164,6.6783244,2424.9,2424.8,1.576]
[1726368457369,6.6783244,2424.9,2424.8,2.72371564]
[1726368459066,3.23635075,2425.1,2424.9,0.32979]
[1726368459266,3.23635075,2425.1,2425.0,1.14771564]
[1726368460362,4.41725075,2425.2,2425.0,1.14771564]
[1726368460567,4.41725075,2425.2,2425.1,0.64205974]
[1726368460766,7.05946793,2425.2,2425.1,0.64205974]
[1726368462266,7.05946793,2425.2,2425.1,2.12205974]
[1726368462471,1.1809,2425.2,2425.1,2.62763127]
[1726368462878,1.1809,2425.2,2425.1,3.65487533]
[1726368463073,1.1809,2425.2,2425.1,2.62763127]
[1726368463468,1.1809,2425.2,2425.1,2.95739127]
[1726368463776,1.1809,2425.2,2425.1,1.80976]
[1726368463972,1.1809,2425.2,2425.1,2.45177631]
[1726368464165,1.1809,2425.2,2425.1,2.95733532]
[1726368464372,3.8793248,2425.2,2425.1,2.95733524]
[1726368464981,3.8793248,2425.2,2425.1,2.62757524]
[1726368465573,3.8793248,2425.2,2425.1,2.95733524]
[1726368465988,2.6984248,2425.2,2425.1,7.08053524]
[1726368466175,2.6984248,2425.2,2425.1,7.45643524]
[1726368467177,2.6984248,2425.2,2425.1,6.95087631]
[1726368467371,2.6984248,2425.2,2425.1,7.4564317]
[1726368467978,2.6984248,2425.2,2425.1,7.45643279]
[1726368468183,2.6984248,2425.2,2425.1,6.95087631]
[1726368468885,3.1044248,2425.2,2425.1,6.95087631]
[1726368470580,3.1044248,2425.2,2425.1,6.95087654]
[1726368470782,0.406,2425.2,2425.1,6.95087654]
[1726368471185,0.406,2425.2,2425.1,6.30886]
[1726368472484,0.406,2425.2,2425.1,5.93296]
[1726368473082,0.406,2425.2,2425.1,1.80976]
[1726368473583,0.406,2425.2,2425.1,1.48]
[1726368473986,3.1044248,2425.2,2425.1,1.48]
[1726368474492,0.406,2425.2,2425.1,1.48]
[1726368493393,3.1044248,2425.2,2425.1,1.48]
[1726368495505,3.10446387,2425.2,2425.1,1.48]
[1726368496405,0.406,2425.2,2425.1,1.48]
[1726368496607,3.1047058,2425.2,2425.1,1.48]
[1726368496801,0.406,2425.2,2425.1,1.48]
[1726368497009,3.10470238,2425.2,2425.1,1.48]
[1726368497216,0.406,2425.2,2425.1,1.48]
[1726368497612,3.10477618,2425.2,2425.1,1.48]
[1726368497814,0.406,2425.2,2425.1,1.48]
[1726368498016,3.10477503,2425.2,2425.1,1.48]
[1726368498211,0.406,2425.2,2425.1,1.48]
[1726368499213,0.406,2425.2,2425.1,2.12202147]
[1726368502120,0.406,2425.2,2425.1,2.62758568]
[1726368504309,0.406,2425.2,2425.1,1.98556421]
[1726368504514,0.406,2425.2,2425.1,2.12202283]
[1726368504724,0.406,2425.2,2425.1,1.98556266]
[1726368505113,0.406,2425.2,2425.1,2.45178263]
[1726368505418,0.406,2425.2,2425.1,2.95734512]
[1726368505719,0.406,2425.2,2425.1,2.62758512]
[1726368506707,0.406,2425.2,2425.1,2.95734512]
[1726368507111,6.54015075,2425.3,2425.1,5.16948047]
[1726368507312,3.3038,2425.3,2425.2,1.14758512]
[1726368507617,3.3038,2425.3,2425.2,1.1475772]
[1726368508020,3.3038,2425.3,2425.2,2.6275772]
[1726368508221,3.3038,2425.3,2425.2,3.65480512]
[1726368508623,3.3038,2425.3,2425.2,8.91662811]
[1726368508624,0.096,2425.3,2425.2,8.91662811]
[1726368508925,0.096,2425.3,2425.2,17.46925344]
[1726368508926,2.79949604,2425.3,2425.2,17.46925344]
[1726368509228,2.25798353,2425.3,2425.2,17.46925344]
[1726368509431,0.096,2425.3,2425.2,16.38861664]
[1726368509721,2.25803234,2425.3,2425.2,17.46925344]
[1726368510227,2.25791485,2425.3,2425.2,14.88814236]
[1726368510821,2.25791485,2425.3,2425.2,14.07922879]
[1726368511013,2.25791485,2425.3,2425.2,14.88805766]
[1726368511331,2.25791485,2425.3,2425.2,13.60408251]
[1726368514227,2.25791485,2425.3,2425.2,10.6204891]
[1726368514519,2.25791485,2425.3,2425.2,12.28958586]
[1726368514720,2.25791485,2425.3,2425.2,13.60394462]
[1726368517521,2.25791485,2425.3,2425.2,11.93484786]
[1726368517724,2.25791485,2425.3,2425.2,13.60392074]
[1726368518319,0.096,2425.3,2425.2,12.28957272]
[1726368518518,2.25791485,2425.3,2425.2,13.60392288]
[1726368518723,0.096,2425.3,2425.2,13.60392288]
[1726368518928,0.096,2425.3,2425.2,13.21872288]
[1726368519822,2.25791485,2425.3,2425.2,12.40989201]
[1726368520125,0.096,2425.3,2425.2,12.40989201]
[1726368520720,2.25791485,2425.3,2425.2,12.40989201]
[1726368521024,2.25791485,2425.3,2425.2,10.74080839]
[1726368521222,2.25791485,2425.3,2425.2,10.2352891]
[1726368521529,2.25791485,2425.3,2425.2,12.40992816]
[1726368522326,2.63481485,2425.3,2425.2,12.40992816]
[1726368524327,0.4729,2425.3,2425.2,12.40992816]
[1726368524630,0.4729,2425.3,2425.2,1.14749389]
[1726368524631,5.84261485,2425.3,2425.2,1.14749389]
[1726368525031,5.84261485,2425.3,2425.1,1.80976]
[1726368525229,5.84261485,2425.3,2425.2,0.6419846]
[1726368525425,5.84261485,2425.3,2425.2,1.14752604]
[1726368525426,3.6807,2425.3,2425.2,1.14752604]
[1726368525627,0.4729,2425.3,2425.2,1.14752604]
[1726368527633,0.4729,2425.3,2425.2,2.62752604]
[1726368531224,0.4729,2425.3,2425.2,2.95727604]
[1726368531535,0.4729,2425.3,2425.2,2.95727825]
[1726368531719,2.63324238,2425.3,2425.2,2.95727825]
[1726368534731,2.63324238,2425.3,2425.2,2.45172262]
[1726368534935,2.63324238,2425.3,2425.2,2.95725227]
[1726368535134,2.63324238,2425.3,2425.2,2.31527965]
[1726368535326,2.63324238,2425.3,2425.2,2.45172625]
[1726368535823,2.63324238,2425.3,2425.2,2.9572588]
[1726368536034,2.63324238,2425.3,2425.2,3.46278993]
[1726368538229,2.63324238,2425.3,2425.2,2.82081368]
[1726368538427,2.63324238,2425.3,2425.2,2.9572597]
[1726368538629,2.63324238,2425.3,2425.2,3.46279343]
[1726368539835,2.63324238,2425.3,2425.2,4.48994998]
[1726368540336,2.63324238,2425.3,2425.2,4.48995597]
[1726368541022,2.63324238,2425.3,2425.2,2.82081628]
[1726368541231,2.63324238,2425.3,2425.2,3.98440763]
[1726368541428,2.63324238,2425.3,2425.2,4.48993732]
[1726368544432,0.4729,2425.3,2425.2,4.48993732]
[1726368545038,0.4729,2425.3,2425.2,3.46277978]
[1726368545339,0.4729,2425.3,2425.2,4.48992527]
[1726368545735,0.4729,2425.3,2425.2,3.98439816]
[1726368545936,0.4729,2425.3,2425.2,2.31528255]
[1726368548435,0.4729,2425.3,2425.2,1.80975]
[1726368550336,3.17639604,2425.3,2425.2,1.80975]
[1726368550543,3.17639604,2425.3,2425.2,7.24732777]
[1726368550736,0.4729,2425.3,2425.2,11.6133895]
[1726368551241,0.4729,2425.3,2425.2,11.98936654]
[1726368551441,0.096,2425.3,2425.2,11.98936654]
[1726368552338,2.79949604,2425.3,2425.2,11.98936654]
[1726368554038,2.79949604,2425.3,2425.2,7.49016688]
[1726368554238,2.79949604,2425.3,2425.2,11.61336688]
[1726368554551,2.79949604,2425.3,2425.2,7.49016688]
[1726368555245,2.79949604,2425.3,2425.2,3.12410515]
[1726368555447,2.79949604,2425.3,2425.2,4.7932361]
[1726368555856,2.79949604,2425.3,2425.2,6.07716425]
[1726368557842,2.79949604,2425.3,2425.2,3.12410515]
[1726368558039,2.79949604,2425.3,2425.2,6.07716649]
[1726368561749,2.79949604,2425.3,2425.2,3.12411604]
[1726368561946,2.79949604,2425.3,2425.2,6.04670252]
[1726368562151,2.79949604,2425.3,2425.2,6.68866503]
[1726368562351,2.79949604,2425.3,2425.2,8.00302753]
[1726368565258,2.79949604,2425.3,2425.2,8.00303911]
[1726368567757,2.79949604,2425.3,2425.2,10.58416093]
[1726368567959,2.79949604,2425.3,2425.2,9.01409419]
[1726368568767,2.79949604,2425.3,2425.2,3.73563747]
[1726368568958,2.79949604,2425.3,2425.2,6.68864762]
[1726368569355,2.79949604,2425.3,2425.2,8.00300216]
[1726368570363,2.79949604,2425.3,2425.2,6.07711469]
[1726368572660,2.79949604,2425.3,2425.2,3.12410454]
[1726368572857,2.79949604,2425.3,2425.2,2.8903868]
[1726368573063,2.79949604,2425.3,2425.2,7.64718166]
[1726368573363,2.79949604,2425.3,2425.2,8.65819959]
[1726368573957,2.79949604,2425.3,2425.2,7.08815166]
[1726368574257,2.79949604,2425.3,2425.2,6.07713373]
[1726368574660,2.79949604,2425.3,2425.2,7.08814629]
[1726368574860,2.79949604,2425.3,2425.2,8.6581852]
[1726368575967,2.79949604,2425.3,2425.2,8.16878309]
[1726368576161,2.79949604,2425.3,2425.2,6.33262707]
[1726368576361,2.79949604,2425.3,2425.2,8.65789059]
[1726368579667,2.79949604,2425.3,2425.2,6.85421611]
[1726368579968,2.79949604,2425.3,2425.2,6.33257815]
[1726368580371,2.79949604,2425.3,2425.2,8.65761109]
[1726368583370,2.79949604,2425.3,2425.2,5.70475525]
[1726368583577,2.79949604,2425.3,2425.2,8.65723688]
[1726368583775,2.79949604,2425.3,2425.2,8.6572337]
[1726368583962,2.79949604,2425.3,2425.2,7.34306575]
[1726368584167,2.79949604,2425.3,2425.2,8.65719023]
[1726368586869,2.79949604,2425.3,2425.2,2.8903868]
[1726368587179,2.79949604,2425.3,2425.2,8.65739023]
[1726368590565,2.79949604,2425.3,2425.2,5.21545438]
[1726368590776,2.79949604,2425.3,2425.2,6.3322796]
[1726368591270,2.79949604,2425.3,2425.2,7.14098987]
[1726368591474,2.79949604,2425.3,2425.2,8.65732161]
[1726368592771,2.79949604,2425.3,2425.2,8.6573562]
[1726368594175,2.79949604,2425.3,2425.2,5.70485769]
[1726368594381,2.79949604,2425.3,2425.2,8.65790711]
[1726368594579,2.79949604,2425.3,2425.2,4.694069]
[1726368594783,2.79949604,2425.3,2425.2,3.37978333]
[1726368594975,2.79949604,2425.3,2425.2,5.04878666]
[1726368595281,2.79949604,2425.3,2425.2,8.65791801]
[1726368597880,2.79949604,2425.3,2425.2,8.65794343]
[1726368601089,2.79949604,2425.3,2425.2,3.37978485]
[1726368601280,2.79949604,2425.3,2425.2,6.33264643]
[1726368601581,2.79949604,2425.3,2425.2,8.65793357]
[1726368603889,2.79949604,2425.3,2425.2,5.21567394]
[1726368604186,2.79949604,2425.3,2425.2,6.3327912]
[1726368604375,2.79949604,2425.3,2425.2,4.98312323]
[1726368604584,2.79949604,2425.3,2425.2,7.63105129]
[1726368604891,2.79949604,2425.3,2425.2,10.9835625]
[1726368605591,2.79949604,2425.3,2425.2,10.98356197]
[1726368607086,2.79949604,2425.3,2425.2,5.21577181]
[1726368607291,2.79949604,2425.3,2425.2,8.65817577]
[1726368607596,2.79949604,2425.3,2425.2,10.98356061]
[1726368607886,2.79949604,2425.3,2425.2,5.70518933]
[1726368608089,2.79949604,2425.3,2425.2,8.65816996]
[1726368608281,2.79949604,2425.3,2425.2,15.69276773]
[1726368610282,2.79949604,2425.3,2425.2,14.04818862]
[1726368610588,0.096,2425.3,2425.2,26.55682575]
[1726368610792,0.096,2425.3,2425.2,26.05130727]
[1726368610994,0.096,2425.3,2425.2,18.74688347]
[1726368611193,0.096,2425.3,2425.2,18.23144074]
[1726368611389,0.096,2425.3,2425.2,11.03636681]
[1726368611692,0.096,2425.3,2425.2,18.23045802]
[1726368613293,0.096,2425.3,2425.2,17.19206904]
[1726368613599,0.096,2425.3,2425.2,17.83630392]
[1726368613899,0.096,2425.3,2425.2,19.06950703]
[1726368613900,1.71819558,2425.3,2425.2,19.06950703]
[1726368614489,1.71819558,2425.3,2425.2,19.45870703]
[1726368614987,1.71819558,2425.3,2425.2,14.56384205]
[1726368615197,1.71819558,2425.3,2425.2,17.62286824]
[1726368615394,1.71819558,2425.3,2425.2,18.895148]
[1726368615595,1.71819558,2425.3,2425.2,18.81432097]
[1726368615794,1.71819558,2425.3,2425.2,19.45849497]
[1726368616295,1.71819558,2425.3,2425.2,18.81432097]
[1726368616497,1.71819558,2425.3,2425.2,19.45849497]
[1726368616796,1.71819558,2425.3,2425.2,22.66629497]
[1726368616994,2.12289558,2425.3,2425.2,22.66629497]
[1726368617194,2.12289558,2425.3,2425.2,22.02212097]
[1726368618495,2.12289558,2425.3,2425.2,21.23916881]
[1726368618696,2.12289558,2425.3,2425.2,22.02208844]
[1726368618894,1.58157338,2425.3,2425.2,23.64322933]
[1726368619296,1.58157338,2425.3,2425.2,22.8603097]
[1726368619500,1.17687338,2425.3,2425.2,22.8603097]
[1726368621089,1.17687338,2425.3,2425.2,22.85948332]
[1726368621814,1.17687338,2425.3,2425.2,22.37014495]
[1726368621999,1.17687338,2425.3,2425.2,22.85947542]
[1726368622198,1.17687338,2425.3,2425.2,22.85948499]
[1726368623000,1.17687338,2425.3,2425.2,19.65168499]
[1726368623206,1.17687338,2425.3,2425.2,22.85948499]
[1726368624598,1.17687338,2425.3,2425.2,19.65168499]
[1726368624796,1.17687338,2425.3,2425.2,18.73628499]
[1726368625005,1.17687338,2425.3,2425.2,22.85948499]
[1726368625202,1.17687338,2425.3,2425.2,16.20989078]
[1726368625394,1.17687338,2425.3,2425.2,18.76147444]
[1726368625599,1.17687338,2425.3,2425.2,20.53449078]
[1726368625807,1.17687338,2425.3,2425.2,22.85951009]
[1726368626509,1.17687338,2425.3,2425.2,22.47031009]
[1726368628700,1.17687338,2425.3,2425.2,16.70348443]
[1726368629203,1.17687338,2425.3,2425.2,19.51780836]
[1726368629403,1.17687338,2425.3,2425.2,22.47029618]
[1726368631003,1.17687338,2425.3,2425.2,22.4702627]
[1726368632404,1.17687338,2425.3,2425.2,22.47026215]
[1726368632595,1.17687338,2425.3,2425.2,22.47027028]
[1726368633412,0.096,2425.3,2425.2,22.47027028]
[1726368635104,0.096,2425.3,2425.2,19.26247028]
[1726368635302,0.096,2425.3,2425.2,22.47027028]
[1726368635499,0.096,2425.3,2425.2,22.46973703]
[1726368636011,0.096,2425.3,2425.2,16.70295118]
[1726368636207,0.096,2425.3,2425.2,17.19216751]
[1726368636513,0.096,2425.3,2425.2,22.09948341]
[1726368636814,0.096,2425.3,2425.2,26.34900191]
[1726368637005,0.096,2425.3,2425.2,27.75524725]
[1726368637398,0.096,2425.3,2425.2,28.39926453]
[1726368637809,0.096,2425.3,2425.2,27.75524725]
[1726368638310,0.096,2425.3,2425.2,28.39926453]
[1726368638510,0.096,2425.3,2425.2,25.19146453]
[1726368638814,0.096,2425.3,2425.2,28.39926453]
[1726368639111,0.096,2425.3,2425.2,27.35964725]
[1726368639705,1.17687338,2425.3,2425.2,22.08337395]
[1726368639912,1.17687338,2425.3,2425.2,26.55068854]
[1726368640109,1.17687338,2425.3,2425.2,27.35912503]
[1726368640316,1.17687338,2425.3,2425.2,27.3591393]
[1726368640808,1.17687338,2425.3,2425.2,23.91809334]
[1726368641014,1.17687338,2425.3,2425.2,19.2600863]
[1726368641209,1.17687338,2425.3,2425.2,22.4678863]
[1726368643405,1.17687338,2425.3,2425.2,19.48601645]
[1726368643613,1.17687338,2425.3,2425.2,22.46816325]
[1726368644409,1.17687338,2425.3,2425.2,19.26036325]
[1726368644610,1.17687338,2425.3,2425.2,22.46816325]
[1726368645021,1.17687338,2425.3,2425.2,19.26036325]
[1726368645216,1.17687338,2425.3,2425.2,22.46816325]
[1726368646820,1.17687338,2425.3,2425.2,19.02734899]
[1726368647117,1.17687338,2425.3,2425.2,18.34497095]
[1726368647313,1.17687338,2425.3,2425.2,17.21413257]
[1726368647516,1.71819558,2425.3,2425.2,15.71324622]
[1726368647817,1.71819558,2425.3,2425.2,17.2291376]
[1726368648216,1.71819558,2425.3,2425.2,16.72383683]
[1726368649213,1.71819558,2425.3,2425.2,17.36783182]
[1726368649515,1.71819558,2425.3,2425.2,16.32280158]
[1726368649820,1.71819558,2425.3,2425.2,19.53179114]
[1726368650208,1.71819558,2425.3,2425.2,20.31450148]
[1726368650606,1.71819558,2425.3,2425.2,22.78139305]
[1726368653217,1.71819558,2425.3,2425.2,23.29658904]
[1726368654216,1.71819558,2425.3,2425.2,15.58947545]
[1726368654413,1.71819558,2425.3,2425.2,14.89982073]
[1726368654619,1.71819558,2425.3,2425.2,20.02179062]
[1726368654813,1.71819558,2425.3,2425.2,23.29724493]
[1726368655012,1.71819558,2425.3,2425.2,20.83028272]
[1726368655212,1.71819558,2425.3,2425.2,22.65324158]
[1726368655409,1.71819558,2425.3,2425.2,20.83028608]
[1726368655710,0.096,2425.3,2425.2,20.83032245]
[1726368656112,0.096,2425.3,2425.2,18.66755269]
[1726368656307,4.2192,2425.3,2425.2,12.15903797]
[1726368656609,4.2192,2425.3,2425.2,13.09807598]
[1726368656804,6.9228593,2425.3,2425.2,11.86459097]
[1726368657013,0.096,2425.3,2425.2,13.09819486]
[1726368657214,2.7996593,2425.3,2425.2,11.86459097]
[1726368657820,0.096,2425.3,2425.2,11.86459097]
[1726368658419,0.096,2425.3,2425.2,8.42368606]
[1726368658724,0.096,2425.3,2425.2,11.36061656]
[1726368659022,0.096,2425.3,2425.2,11.86604663]
[1726368659221,0.096,2425.3,2425.2,11.37671494]
[1726368659708,0.096,2425.3,2425.2,10.29499367]
[1726368660617,0.096,2425.3,2425.2,7.08719367]
[1726368660920,0.096,2425.3,2425.2,5.16170846]
[1726368661217,0.096,2425.3,2425.2,7.08729623]
[1726368662115,2.25866429,2425.3,2425.2,7.08729623]
[1726368662423,2.25866429,2425.3,2425.2,6.07643609]
[1726368663106,2.25866429,2425.3,2425.2,3.12386818]
[1726368663305,2.25866429,2425.3,2425.2,6.15020104]
[1726368663510,2.25866429,2425.3,2425.2,9.10287211]
[1726368663711,2.25866429,2425.3,2425.2,10.41708161]
[1726368664114,2.25866429,2425.3,2425.2,6.65566623]
[1726368664414,2.25866429,2425.3,2425.2,9.60838682]
[1726368664715,2.25866429,2425.3,2425.2,10.41715315]
[1726368667615,2.25866429,2425.3,2425.2,6.15020104]
[1726368667824,2.25866429,2425.3,2425.2,8.46117307]
[1726368668120,2.25866429,2425.3,2425.2,6.65570684]
[1726368668321,2.25866429,2425.3,2425.2,9.60858751]
[1726368668517,2.25866429,2425.3,2425.2,10.92289009]
[1726368668719,2.25866429,2425.3,2425.2,10.44783821]
[1726368668918,2.25866429,2425.3,2425.2,11.73165965]
[1726368669113,2.25866429,2425.3,2425.2,10.44779707]
[1726368670723,2.25866429,2425.3,2425.2,10.44776776]
[1726368670919,2.25866429,2425.3,2425.2,10.44776771]
[1726368671123,2.25866429,2425.3,2425.2,9.13345263]
[1726368671315,2.25866429,2425.3,2425.2,7.48942936]
[1726368671525,2.25866429,2425.3,2425.2,9.13345838]
[1726368674510,2.25866429,2425.3,2425.2,8.49154364]
[1726368674716,2.25866429,2425.3,2425.2,7.46448006]
[1726368674911,2.25866429,2425.3,2425.2,7.81922014]
[1726368675324,2.25866429,2425.3,2425.2,9.13351754]
[1726368678223,2.25866429,2425.3,2425.2,8.32470385]
[1726368678427,2.25866429,2425.3,2425.2,9.1334931]
[1726368678626,2.25866429,2425.3,2425.2,7.46448929]
[1726368678822,2.25866429,2425.3,2425.2,6.79209867]
[1726368679026,2.25866429,2425.3,2425.2,9.13336702]
[1726368679533,2.25866429,2425.3,2425.2,9.13344994]
[1726368680231,2.25866429,2425.3,2425.2,4.4632489]
[1726368680627,6.9228593,2425.3,2425.2,2.62740342]
[1726368681524,6.9228593,2425.3,2425.2,2.95715342]
[1726368681727,6.9228593,2425.3,2425.2,2.3152239]
[1726368682021,6.9228593,2425.3,2425.2,2.62752217]
[1726368682531,6.9228593,2425.3,2425.2,2.95727217]
[1726368684133,2.7996593,2425.3,2425.2,2.95727217]
[1726368686532,2.7996593,2425.3,2425.2,2.62752217]
[1726368686734,2.7996593,2425.3,2425.2,2.12198176]
[1726368687039,0.096,2425.3,2425.2,2.12198176]
[1726368687532,0.096,2425.3,2425.1,1.48]
[1726368687533,4.2192,2425.3,2425.1,1.48]
[1726368687740,3.85364173,2425.2,2425.1,1.48]
[1726368687933,3.85364173,2425.2,2425.1,2.12200806]
[1726368688131,7.97684173,2425.2,2425.1,2.12200806]
[1726368689033,7.97684173,2425.2,2425.1,1.80976]
[1726368689235,3.85364173,2425.2,2425.1,2.45176811]
[1726368689939,3.85364173,2425.2,2425.1,1.80976]
[1726368690236,3.85364173,2425.2,2425.1,2.45177146]
[1726368690839,7.97684173,2425.2,2425.1,2.45177146]
[1726368691039,3.85364173,2425.2,2425.1,2.45177146]
[1726368691337,7.97684173,2425.2,2425.1,2.12201146]
[1726368692035,7.97684173,2425.2,2425.1,2.45177146]
[1726368692345,7.97684173,2425.2,2425.1,2.451772]
[1726368695136,3.85364173,2425.2,2425.1,2.451772]
[1726368695738,7.97684173,2425.2,2425.1,1.80976]
[1726368696040,7.97684173,2425.2,2425.1,2.45177926]
[1726368696041,3.85364173,2425.2,2425.1,2.45177926]
[1726368699140,3.85364173,2425.2,2425.1,1.80976]
[1726368699545,3.85364173,2425.2,2425.1,2.45177171]
[1726368699943,3.85364173,2425.2,2425.1,3.09378334]
[1726368701148,3.85364173,2425.2,2425.1,3.59933918]
[1726368701344,3.85364173,2425.2,2425.1,2.95732747]
[1726368701745,3.85364173,2425.2,2425.1,2.95732755]
[1726368702541,3.85364173,2425.2,2425.1,1.80976]
[1726368702736,3.85364173,2425.2,2425.1,2.45177319]
[1726368702943,3.85364173,2425.2,2425.1,2.95733028]
[1726368703139,3.47614173,2425.2,2425.1,2.95733028]
[1726368703750,3.47614173,2425.2,2425.1,3.33333028]
[1726368703947,0.7749,2425.2,2425.1,3.33333028]
[1726368704454,3.47614173,2425.2,2425.1,3.33333028]
[1726368704759,3.47614173,2425.2,2425.1,2.69131709]
[1726368704946,3.47614173,2425.2,2425.1,3.33329604]
[1726368705342,3.47614173,2425.2,2425.1,4.36045815]